[Event "Late-Titled-Tuesday-Blitz-January-23-2024"]
[Site "Chess.com"]
[Date "2024.01.23"]
[Round "9"]
[White "Defenstrator"]
[Black "Hirna2005"]
[Result "1-0"]
[WhiteElo "2511"]
[BlackElo "2308"]
[TimeControl "180+1"]
[EndTime "15:38:34 PST"]
[Termination "Defenstrator won by checkmate"]

1. d4 {[%clk 0:03:00.4]} 1... g6 {[%clk 0:03:00.6]} 2. Bf4 {[%clk 0:02:56.2]}
2... Bg7 {[%clk 0:03:00.8]} 3. e4 {[%clk 0:02:51.3]} 3... d6 {[%clk 0:03:01.3]}
4. f3 {[%clk 0:02:46.7]} 4... c5 {[%clk 0:02:59.9]} 5. c3 {[%clk 0:02:15.6]}
5... cxd4 {[%clk 0:02:59.3]} 6. cxd4 {[%clk 0:02:16.2]} 6... Qb6 {[%clk
0:02:59.9]} 7. Nc3 {[%clk 0:02:14.2]} 7... Bxd4 {[%clk 0:02:39.5]} 8. Nd5 {[%clk
0:02:10.5]} 8... Qa5+ {[%clk 0:02:24.9]} 9. b4 {[%clk 0:02:08]} 9... Qa3 {[%clk
0:02:11.4]} 10. Qxd4 {[%clk 0:02:05.4]} 10... e5 {[%clk 0:02:11.5]} 11. Bxe5
{[%clk 0:02:03.1]} 11... Nc6 {[%clk 0:02:09.6]} 12. Nc7+ {[%clk 0:02:04]} 12...
Kf8 {[%clk 0:01:54.1]} 13. Bxd6+ {[%clk 0:01:58.8]} 13... Nce7 {[%clk
0:01:47.3]} 14. Qxh8 {[%clk 0:01:50.7]} 14... f6 {[%clk 0:01:47.4]} 15. Nd5
{[%clk 0:01:45.3]} 15... Be6 {[%clk 0:01:41.6]} 16. Bxe7+ {[%clk 0:01:43.8]}
16... Kf7 {[%clk 0:01:42.1]} 17. Qxh7+ {[%clk 0:01:43]} 17... Ke8 {[%clk
0:01:42.4]} 18. Qxg6+ {[%clk 0:01:39.2]} 18... Bf7 {[%clk 0:01:42.7]} 19. Bb5#
{[%clk 0:01:38.8]} 1-0

[Event "Late-Titled-Tuesday-Blitz-January-23-2024"]
[Site "Chess.com"]
[Date "2024.01.23"]
[Round "9"]
[White "ClayK1ng"]
[Black "Nf3c5"]
[Result "1-0"]
[WhiteElo "2260"]
[BlackElo "2504"]
[TimeControl "180+1"]
[EndTime "15:39:17 PST"]
[Termination "ClayK1ng won by resignation"]

1. e4 {[%clk 0:02:59.6]} 1... c5 {[%clk 0:02:57]} 2. Nc3 {[%clk 0:02:54.6]} 2...
a6 {[%clk 0:02:55.5]} 3. d4 {[%clk 0:02:51.9]} 3... cxd4 {[%clk 0:02:54.7]} 4.
Qxd4 {[%clk 0:02:52.8]} 4... Nc6 {[%clk 0:02:53.9]} 5. Qd2 {[%clk 0:02:52.8]}
5... g6 {[%clk 0:02:48.7]} 6. b3 {[%clk 0:02:51.2]} 6... Bg7 {[%clk 0:02:48.7]}
7. Bb2 {[%clk 0:02:51.7]} 7... Nf6 {[%clk 0:02:43.8]} 8. O-O-O {[%clk
0:02:49.7]} 8... O-O {[%clk 0:02:41.1]} 9. f3 {[%clk 0:02:49.8]} 9... b5 {[%clk
0:02:39]} 10. Kb1 {[%clk 0:02:49]} 10... Bb7 {[%clk 0:01:45.8]} 11. Nge2 {[%clk
0:02:47.1]} 11... b4 {[%clk 0:01:27.7]} 12. Nd5 {[%clk 0:02:46.4]} 12... Nxd5
{[%clk 0:01:17.9]} 13. exd5 {[%clk 0:02:47.3]} 13... Na7 {[%clk 0:01:12.4]} 14.
Bxg7 {[%clk 0:02:43.3]} 14... Kxg7 {[%clk 0:01:13.3]} 15. h4 {[%clk 0:02:42.8]}
15... h5 {[%clk 0:00:57]} 16. Qxb4 {[%clk 0:02:40]} 16... Rb8 {[%clk 0:00:56.1]}
17. Qd4+ {[%clk 0:02:39.5]} 17... Kg8 {[%clk 0:00:53.7]} 18. Qxa7 {[%clk
0:02:40.4]} 18... Qa5 {[%clk 0:00:51.9]} 19. Qd4 {[%clk 0:02:38.9]} 19... Rfc8
{[%clk 0:00:51.4]} 20. Nf4 {[%clk 0:02:37.8]} 20... Rxc2 {[%clk 0:00:45.3]} 21.
Kxc2 {[%clk 0:02:36.1]} 21... Qxa2+ {[%clk 0:00:45.5]} 22. Qb2 {[%clk
0:02:36.7]} 22... Rc8+ {[%clk 0:00:45.9]} 23. Bc4 {[%clk 0:02:36.8]} 23... Rxc4+
{[%clk 0:00:44.8]} 24. bxc4 {[%clk 0:02:37.7]} 24... Qxc4+ {[%clk 0:00:45.1]}
25. Kb1 {[%clk 0:02:38.1]} 25... Qc7 {[%clk 0:00:25.9]} 26. Rc1 {[%clk
0:02:35.8]} 26... Qxf4 {[%clk 0:00:22.9]} 27. Qxb7 {[%clk 0:02:34]} 1-0

[Event "Late-Titled-Tuesday-Blitz-January-23-2024"]
[Site "Chess.com"]
[Date "2024.01.23"]
[Round "9"]
[White "almaguerjm"]
[Black "Flameboard08"]
[Result "0-1"]
[WhiteElo "2472"]
[BlackElo "2565"]
[TimeControl "180+1"]
[EndTime "15:39:21 PST"]
[Termination "Flameboard08 won by resignation"]

1. e4 {[%clk 0:02:56.3]} 1... b6 {[%clk 0:03:00.1]} 2. d4 {[%clk 0:02:49]} 2...
Bb7 {[%clk 0:03:00]} 3. Nd2 {[%clk 0:02:49]} 3... e6 {[%clk 0:03:00.5]} 4. Bd3
{[%clk 0:02:47.5]} 4... c5 {[%clk 0:03:01]} 5. c3 {[%clk 0:02:47.7]} 5... cxd4
{[%clk 0:03:00.5]} 6. cxd4 {[%clk 0:02:47.1]} 6... Nc6 {[%clk 0:03:01.1]} 7. Ne2
{[%clk 0:02:47.5]} 7... Nb4 {[%clk 0:03:01.1]} 8. Bb1 {[%clk 0:02:47.7]} 8...
Ba6 {[%clk 0:02:54.4]} 9. Nf3 {[%clk 0:02:44.9]} 9... Rc8 {[%clk 0:02:46.2]} 10.
Bg5 {[%clk 0:02:40]} 10... Be7 {[%clk 0:02:41]} 11. Bxe7 {[%clk 0:02:36.8]}
11... Nxe7 {[%clk 0:02:41.6]} 12. a3 {[%clk 0:02:35.6]} 12... Bxe2 {[%clk
0:02:38.7]} 13. Kxe2 {[%clk 0:02:28]} 13... Nbc6 {[%clk 0:02:35.4]} 14. d5
{[%clk 0:02:28.3]} 14... exd5 {[%clk 0:02:33.7]} 15. exd5 {[%clk 0:02:29.2]}
15... Na5 {[%clk 0:02:34]} 16. Qd3 {[%clk 0:02:13.3]} 16... Ng6 {[%clk
0:02:27.1]} 17. Re1 {[%clk 0:01:53.9]} 17... O-O {[%clk 0:02:23]} 18. Kf1 {[%clk
0:01:52.1]} 18... Qf6 {[%clk 0:02:20.7]} 19. Ne5 {[%clk 0:01:38.6]} 19... Rfe8
{[%clk 0:02:09.9]} 20. Nxg6 {[%clk 0:01:33.8]} 20... Rxe1+ {[%clk 0:02:07.8]}
21. Kxe1 {[%clk 0:01:33.7]} 21... Rc1+ {[%clk 0:01:45.2]} 22. Ke2 {[%clk
0:01:19]} 22... Qxb2+ {[%clk 0:01:43.3]} 23. Kf3 {[%clk 0:01:18.3]} 23... Rc3
{[%clk 0:01:38.2]} 0-1

[Event "Late-Titled-Tuesday-Blitz-January-23-2024"]
[Site "Chess.com"]
[Date "2024.01.23"]
[Round "9"]
[White "ITheOnlyME"]
[Black "TheoSlade"]
[Result "1-0"]
[WhiteElo "2399"]
[BlackElo "2461"]
[TimeControl "180+1"]
[EndTime "15:39:22 PST"]
[Termination "ITheOnlyME won by resignation"]

1. d4 {[%clk 0:03:00.9]} 1... d5 {[%clk 0:02:59.5]} 2. Bf4 {[%clk 0:03:01.4]}
2... Nf6 {[%clk 0:02:59.4]} 3. e3 {[%clk 0:03:02]} 3... c5 {[%clk 0:02:59.9]} 4.
dxc5 {[%clk 0:03:02.9]} 4... Nc6 {[%clk 0:02:59.5]} 5. Bb5 {[%clk 0:03:03.5]}
5... Qa5+ {[%clk 0:02:45.7]} 6. Nc3 {[%clk 0:03:03.6]} 6... e6 {[%clk 0:02:45]}
7. a3 {[%clk 0:03:02.9]} 7... Ne4 {[%clk 0:02:18.3]} 8. Ne2 {[%clk 0:03:03.2]}
8... a6 {[%clk 0:01:48.5]} 9. Bxc6+ {[%clk 0:03:01.3]} 9... bxc6 {[%clk
0:01:48.5]} 10. b4 {[%clk 0:03:01.9]} 10... Qd8 {[%clk 0:01:48.9]} 11. Nxe4
{[%clk 0:03:01.5]} 11... dxe4 {[%clk 0:01:48.6]} 12. Qxd8+ {[%clk 0:03:02.1]}
12... Kxd8 {[%clk 0:01:49.5]} 13. O-O-O+ {[%clk 0:02:54.9]} 13... Ke8 {[%clk
0:01:48.6]} 14. Nc3 {[%clk 0:02:52.3]} 14... f6 {[%clk 0:01:31.1]} 15. Bd6
{[%clk 0:02:46.6]} 15... f5 {[%clk 0:01:02.8]} 16. Na4 {[%clk 0:02:45.6]} 16...
Bb7 {[%clk 0:00:53]} 17. Bc7 {[%clk 0:02:29.3]} 17... Rc8 {[%clk 0:00:44.5]} 18.
Be5 {[%clk 0:02:29.2]} 18... Rg8 {[%clk 0:00:36.9]} 19. Nb6 {[%clk 0:02:29.4]}
19... Rd8 {[%clk 0:00:37.2]} 20. Rxd8+ {[%clk 0:02:29.8]} 20... Kxd8 {[%clk
0:00:38.1]} 21. Rd1+ {[%clk 0:02:30.2]} 21... Ke8 {[%clk 0:00:38]} 22. Rd7
{[%clk 0:02:29.8]} 22... Bc8 {[%clk 0:00:38.1]} 23. Rc7 {[%clk 0:02:26.3]} 23...
Kd8 {[%clk 0:00:35.8]} 24. Rxc8+ {[%clk 0:02:25.5]} 24... Ke7 {[%clk 0:00:35.2]}
25. Bd6+ {[%clk 0:02:24.1]} 25... Kf7 {[%clk 0:00:34.4]} 26. Bxf8 {[%clk
0:02:19.9]} 26... Rxf8 {[%clk 0:00:33.1]} 27. Rxf8+ {[%clk 0:02:20.4]} 27...
Kxf8 {[%clk 0:00:34]} 28. Nd7+ {[%clk 0:02:21.1]} 1-0

[Event "Late-Titled-Tuesday-Blitz-January-23-2024"]
[Site "Chess.com"]
[Date "2024.01.23"]
[Round "9"]
[White "BardArtem"]
[Black "ChessSwole"]
[Result "1-0"]
[WhiteElo "2797"]
[BlackElo "2619"]
[TimeControl "180+1"]
[EndTime "15:39:55 PST"]
[Termination "BardArtem won by resignation"]

1. e4 {[%clk 0:03:00.9]} 1... c5 {[%clk 0:02:59.8]} 2. Nf3 {[%clk 0:03:00.7]}
2... Nc6 {[%clk 0:03:00.1]} 3. c3 {[%clk 0:03:00]} 3... Nf6 {[%clk 0:02:57]} 4.
e5 {[%clk 0:03:00.2]} 4... Nd5 {[%clk 0:02:57.7]} 5. Bc4 {[%clk 0:03:01.1]} 5...
Nb6 {[%clk 0:02:57.5]} 6. Bb3 {[%clk 0:03:01.7]} 6... d5 {[%clk 0:02:56.8]} 7.
exd6 {[%clk 0:03:02.6]} 7... c4 {[%clk 0:02:57]} 8. Bc2 {[%clk 0:03:01.8]} 8...
Qxd6 {[%clk 0:02:54.1]} 9. O-O {[%clk 0:03:01.7]} 9... Bg4 {[%clk 0:02:53.4]}
10. h3 {[%clk 0:03:02]} 10... Bh5 {[%clk 0:02:52.7]} 11. b3 {[%clk 0:03:02.3]}
11... O-O-O {[%clk 0:02:38.8]} 12. Na3 {[%clk 0:03:01.2]} 12... Ne5 {[%clk
0:02:31.4]} 13. g4 {[%clk 0:02:44.3]} 13... Nxf3+ {[%clk 0:02:26.5]} 14. Qxf3
{[%clk 0:02:42.8]} 14... Bg6 {[%clk 0:02:27.4]} 15. bxc4 {[%clk 0:02:32.1]}
15... Bxc2 {[%clk 0:02:22.6]} 16. Nxc2 {[%clk 0:02:33]} 16... f6 {[%clk
0:02:00.5]} 17. Ne3 {[%clk 0:02:29.2]} 17... h5 {[%clk 0:01:46.2]} 18. d4 {[%clk
0:02:23.2]} 18... hxg4 {[%clk 0:01:39.8]} 19. Qxg4+ {[%clk 0:02:24.1]} 19... e6
{[%clk 0:01:35.1]} 20. c5 {[%clk 0:02:21.7]} 20... Qc6 {[%clk 0:01:30.1]} 21.
cxb6 {[%clk 0:02:20.5]} 21... axb6 {[%clk 0:01:30.4]} 22. d5 {[%clk 0:02:20.3]}
22... Qc5 {[%clk 0:01:25.1]} 23. Qxe6+ {[%clk 0:02:19]} 23... Kb8 {[%clk
0:01:25.8]} 24. Nf5 {[%clk 0:02:15.9]} 24... Rxd5 {[%clk 0:01:23]} 25. Bf4+
{[%clk 0:02:15.3]} 25... Ka7 {[%clk 0:01:23.2]} 26. Qe8 {[%clk 0:01:52.9]} 26...
Bd6 {[%clk 0:01:04.7]} 27. Bxd6 {[%clk 0:01:44.1]} 27... Rxe8 {[%clk 0:00:53]}
28. Bxc5 {[%clk 0:01:43.2]} 28... Rxc5 {[%clk 0:00:51.5]} 29. Nd6 {[%clk
0:01:41.4]} 29... Rh8 {[%clk 0:00:49.4]} 30. Kg2 {[%clk 0:01:39.7]} 30... Rxc3
{[%clk 0:00:47.5]} 31. Nb5+ {[%clk 0:01:39.4]} 1-0

[Event "Late-Titled-Tuesday-Blitz-January-23-2024"]
[Site "Chess.com"]
[Date "2024.01.23"]
[Round "9"]
[White "The_Machine04"]
[Black "ValeriyGrinev"]
[Result "1-0"]
[WhiteElo "2723"]
[BlackElo "2546"]
[TimeControl "180+1"]
[EndTime "15:40:14 PST"]
[Termination "The_Machine04 won by resignation"]

1. d4 {[%clk 0:02:59.2]} 1... c5 {[%clk 0:03:00.9]} 2. e3 {[%clk 0:02:56.4]}
2... Nf6 {[%clk 0:03:00.2]} 3. Nf3 {[%clk 0:02:55.8]} 3... cxd4 {[%clk 0:02:59]}
4. exd4 {[%clk 0:02:55.2]} 4... g6 {[%clk 0:02:59.9]} 5. c3 {[%clk 0:02:55]}
5... Bg7 {[%clk 0:03:00.5]} 6. Nbd2 {[%clk 0:02:55.5]} 6... O-O {[%clk
0:03:01.1]} 7. Bd3 {[%clk 0:02:55.9]} 7... d5 {[%clk 0:03:01.8]} 8. O-O {[%clk
0:02:56.2]} 8... Nc6 {[%clk 0:03:02.5]} 9. Re1 {[%clk 0:02:56.4]} 9... Bg4
{[%clk 0:03:03.1]} 10. h3 {[%clk 0:02:56.6]} 10... Bxf3 {[%clk 0:03:02.5]} 11.
Nxf3 {[%clk 0:02:56.9]} 11... e6 {[%clk 0:03:03.2]} 12. Bg5 {[%clk 0:02:56.1]}
12... Qb6 {[%clk 0:03:02.6]} 13. Qe2 {[%clk 0:02:52.2]} 13... Rac8 {[%clk
0:03:00.4]} 14. h4 {[%clk 0:02:49]} 14... h5 {[%clk 0:02:59.7]} 15. Ne5 {[%clk
0:02:47.5]} 15... Nxe5 {[%clk 0:02:59.2]} 16. dxe5 {[%clk 0:02:48.4]} 16... Ng4
{[%clk 0:02:57.9]} 17. Bf4 {[%clk 0:02:44.3]} 17... d4 {[%clk 0:02:51.1]} 18. c4
{[%clk 0:02:41.5]} 18... Rfd8 {[%clk 0:02:49.7]} 19. Rad1 {[%clk 0:02:36.4]}
19... Qa5 {[%clk 0:02:48.8]} 20. a3 {[%clk 0:02:20.5]} 20... Qb6 {[%clk
0:02:33.6]} 21. b4 {[%clk 0:02:14.3]} 21... a5 {[%clk 0:02:32.5]} 22. c5 {[%clk
0:02:13.8]} 22... Qc7 {[%clk 0:02:32.6]} 23. f3 {[%clk 0:02:12.8]} 23... Ne3
{[%clk 0:02:29.9]} 24. Bxe3 {[%clk 0:02:12.2]} 24... dxe3 {[%clk 0:02:29.7]} 25.
Qxe3 {[%clk 0:02:11.4]} 25... axb4 {[%clk 0:02:30.4]} 26. axb4 {[%clk
0:02:11.2]} 26... Rd5 {[%clk 0:02:30.5]} 27. f4 {[%clk 0:02:09.8]} 27... Rcd8
{[%clk 0:02:30.2]} 28. Be2 {[%clk 0:02:10.1]} 28... Bh6 {[%clk 0:02:11.2]} 29.
Bf3 {[%clk 0:02:06.2]} 29... Rxd1 {[%clk 0:02:10]} 30. Rxd1 {[%clk 0:02:07.1]}
30... Rxd1+ {[%clk 0:02:08.1]} 31. Bxd1 {[%clk 0:02:08]} 31... Qd7 {[%clk
0:02:07.5]} 32. Bf3 {[%clk 0:02:06.7]} 32... Qa4 {[%clk 0:02:06.1]} 33. Qd4
{[%clk 0:02:00.8]} 33... Qa3 {[%clk 0:01:52.4]} 34. Kh2 {[%clk 0:01:45.7]} 34...
Qc1 {[%clk 0:01:50.4]} 35. g3 {[%clk 0:01:45.6]} 35... Qc2+ {[%clk 0:01:43]} 36.
Kh3 {[%clk 0:01:45]} 36... Qf5+ {[%clk 0:01:41.6]} 37. Kg2 {[%clk 0:01:30.1]}
37... Qc2+ {[%clk 0:01:42.5]} 38. Qf2 {[%clk 0:01:28.1]} 38... Qf5 {[%clk
0:01:43.4]} 39. Bxb7 {[%clk 0:01:27]} 39... Qc2 {[%clk 0:01:44.3]} 40. Qxc2
{[%clk 0:01:26.5]} 1-0

[Event "Late-Titled-Tuesday-Blitz-January-23-2024"]
[Site "Chess.com"]
[Date "2024.01.23"]
[Round "9"]
[White "toninhojit"]
[Black "vugarrasulov"]
[Result "0-1"]
[WhiteElo "2529"]
[BlackElo "2944"]
[TimeControl "180+1"]
[EndTime "15:40:18 PST"]
[Termination "vugarrasulov won by resignation"]

1. d4 {[%clk 0:03:00.9]} 1... Nf6 {[%clk 0:02:59.6]} 2. c4 {[%clk 0:02:59.4]}
2... e6 {[%clk 0:03:00]} 3. Nf3 {[%clk 0:02:58.5]} 3... c5 {[%clk 0:02:59.7]} 4.
d5 {[%clk 0:02:56.9]} 4... d6 {[%clk 0:03:00.1]} 5. Nc3 {[%clk 0:02:56.5]} 5...
exd5 {[%clk 0:03:00.7]} 6. cxd5 {[%clk 0:02:57.4]} 6... g6 {[%clk 0:03:01]} 7.
h3 {[%clk 0:02:56.7]} 7... Bg7 {[%clk 0:03:00.6]} 8. Bf4 {[%clk 0:02:55.4]} 8...
O-O {[%clk 0:03:00.6]} 9. e3 {[%clk 0:02:51.6]} 9... Na6 {[%clk 0:03:00.2]} 10.
Be2 {[%clk 0:02:47.3]} 10... Nc7 {[%clk 0:02:59.8]} 11. O-O {[%clk 0:02:47]}
11... Re8 {[%clk 0:02:58.4]} 12. a4 {[%clk 0:02:35.5]} 12... Ne4 {[%clk
0:02:56.8]} 13. Nxe4 {[%clk 0:02:14.2]} 13... Rxe4 {[%clk 0:02:57.7]} 14. Nd2
{[%clk 0:02:08.4]} 14... Rxf4 {[%clk 0:02:57.6]} 15. exf4 {[%clk 0:02:08.1]}
15... Nxd5 {[%clk 0:02:58.3]} 16. Ne4 {[%clk 0:01:43.3]} 16... Nxf4 {[%clk
0:02:57.3]} 17. Bf3 {[%clk 0:01:42.3]} 17... Bxb2 {[%clk 0:02:48.7]} 18. Qd2
{[%clk 0:01:21.2]} 18... Bxa1 {[%clk 0:02:39.2]} 19. Rxa1 {[%clk 0:01:22.1]}
19... d5 {[%clk 0:02:37.6]} 20. Nxc5 {[%clk 0:01:17.2]} 20... Qg5 {[%clk
0:02:33]} 21. Rd1 {[%clk 0:01:05.1]} 21... Nxh3+ {[%clk 0:02:20.1]} 22. Kh2
{[%clk 0:01:00.5]} 22... Qxd2 {[%clk 0:02:16.4]} 23. Rxd2 {[%clk 0:01:01.4]}
23... Nf4 {[%clk 0:02:16.3]} 24. Bxd5 {[%clk 0:00:37.6]} 24... Nxd5 {[%clk
0:02:15.8]} 25. Rxd5 {[%clk 0:00:38.5]} 25... b6 {[%clk 0:02:14]} 26. Rd8+
{[%clk 0:00:36.5]} 26... Kg7 {[%clk 0:02:14]} 27. Nd3 {[%clk 0:00:23.7]} 27...
Bb7 {[%clk 0:02:11.6]} 28. Rd7 {[%clk 0:00:24]} 28... Bc6 {[%clk 0:02:10.6]} 29.
Rc7 {[%clk 0:00:22.6]} 29... Bxa4 {[%clk 0:02:10.1]} 30. Ne5 {[%clk 0:00:23.2]}
30... Bb3 {[%clk 0:02:10.4]} 31. Rc3 {[%clk 0:00:17.6]} 31... Be6 {[%clk
0:02:09.8]} 32. Rc7 {[%clk 0:00:17.8]} 32... a5 {[%clk 0:02:08.5]} 33. Nf3
{[%clk 0:00:18]} 33... a4 {[%clk 0:02:05]} 34. Ng5 {[%clk 0:00:18.4]} 34... Kg8
{[%clk 0:02:04.1]} 35. Ne4 {[%clk 0:00:11]} 35... a3 {[%clk 0:02:04]} 0-1

[Event "Late-Titled-Tuesday-Blitz-January-23-2024"]
[Site "Chess.com"]
[Date "2024.01.23"]
[Round "9"]
[White "Byniolus"]
[Black "sergoy"]
[Result "0-1"]
[WhiteElo "2847"]
[BlackElo "3031"]
[TimeControl "180+1"]
[EndTime "15:40:44 PST"]
[Termination "sergoy won by checkmate"]

1. d4 {[%clk 0:03:00.9]} 1... d6 {[%clk 0:02:56.5]} 2. Nf3 {[%clk 0:03:01]} 2...
Nf6 {[%clk 0:02:56.3]} 3. Bf4 {[%clk 0:03:01.2]} 3... g6 {[%clk 0:02:56.4]} 4.
e3 {[%clk 0:03:01.4]} 4... Bg7 {[%clk 0:02:57]} 5. Be2 {[%clk 0:03:02]} 5... O-O
{[%clk 0:02:57.5]} 6. h3 {[%clk 0:03:02.7]} 6... Nfd7 {[%clk 0:02:58]} 7. O-O
{[%clk 0:03:02.5]} 7... e5 {[%clk 0:02:58.5]} 8. Bh2 {[%clk 0:03:03.4]} 8... Nc6
{[%clk 0:02:59.1]} 9. c4 {[%clk 0:03:03.6]} 9... f5 {[%clk 0:02:57.8]} 10. Nc3
{[%clk 0:03:02]} 10... e4 {[%clk 0:02:57.8]} 11. Nd2 {[%clk 0:03:02]} 11... Nf6
{[%clk 0:02:56.1]} 12. a3 {[%clk 0:02:59.1]} 12... g5 {[%clk 0:02:56.1]} 13. b4
{[%clk 0:02:59]} 13... f4 {[%clk 0:02:55]} 14. b5 {[%clk 0:02:49.8]} 14... Ne7
{[%clk 0:02:52.3]} 15. exf4 {[%clk 0:02:44.2]} 15... gxf4 {[%clk 0:02:47.3]} 16.
Bxf4 {[%clk 0:02:45.1]} 16... Nf5 {[%clk 0:02:44.9]} 17. Nb3 {[%clk 0:02:35.8]}
17... Qe8 {[%clk 0:02:44.9]} 18. Kh1 {[%clk 0:02:11.3]} 18... Qg6 {[%clk
0:02:44.7]} 19. Rg1 {[%clk 0:01:55.5]} 19... Be6 {[%clk 0:02:44.1]} 20. Rc1
{[%clk 0:01:40.1]} 20... Rae8 {[%clk 0:02:43.4]} 21. c5 {[%clk 0:01:25.6]} 21...
e3 {[%clk 0:02:32.2]} 22. fxe3 {[%clk 0:01:19.6]} 22... Ng3+ {[%clk 0:02:32.7]}
23. Kh2 {[%clk 0:01:00.4]} 23... Nfh5 {[%clk 0:02:24.7]} 24. Bxh5 {[%clk
0:00:45.3]} 24... Nxh5 {[%clk 0:02:24.4]} 25. cxd6 {[%clk 0:00:27.2]} 25... cxd6
{[%clk 0:02:11.9]} 26. d5 {[%clk 0:00:25.7]} 26... Bd7 {[%clk 0:02:01.3]} 27.
Nd4 {[%clk 0:00:24.7]} 27... Rxe3 {[%clk 0:01:34.5]} 28. Bxe3 {[%clk 0:00:11.4]}
28... Qg3+ {[%clk 0:01:34.3]} 29. Kh1 {[%clk 0:00:12.3]} 29... Be5 {[%clk
0:01:35.1]} 30. Nf3 {[%clk 0:00:04.2]} 30... Qh2+ {[%clk 0:01:35.3]} 31. Nxh2
{[%clk 0:00:03.6]} 31... Ng3# {[%clk 0:01:36.2]} 0-1

[Event "Late-Titled-Tuesday-Blitz-January-23-2024"]
[Site "Chess.com"]
[Date "2024.01.23"]
[Round "9"]
[White "DonJuan_34"]
[Black "j_coca"]
[Result "0-1"]
[WhiteElo "2393"]
[BlackElo "2526"]
[TimeControl "180+1"]
[EndTime "15:40:50 PST"]
[Termination "j_coca won by resignation"]

1. d4 {[%clk 0:03:00.9]} 1... g6 {[%clk 0:03:00.2]} 2. c4 {[%clk 0:03:00.5]}
2... Bg7 {[%clk 0:02:59.7]} 3. Nc3 {[%clk 0:03:00.5]} 3... d6 {[%clk 0:02:59.2]}
4. e4 {[%clk 0:03:00]} 4... Nc6 {[%clk 0:02:27.1]} 5. Be3 {[%clk 0:02:59.4]}
5... Nh6 {[%clk 0:02:25.9]} 6. Be2 {[%clk 0:02:36.4]} 6... O-O {[%clk
0:02:17.3]} 7. Nf3 {[%clk 0:02:34]} 7... Ng4 {[%clk 0:02:15.7]} 8. Bc1 {[%clk
0:02:31.4]} 8... a6 {[%clk 0:02:11.8]} 9. O-O {[%clk 0:02:29.3]} 9... Kh8 {[%clk
0:02:09.4]} 10. d5 {[%clk 0:02:19.3]} 10... Nb8 {[%clk 0:02:05.7]} 11. Nd4
{[%clk 0:02:14]} 11... Nf6 {[%clk 0:01:54]} 12. f4 {[%clk 0:02:13.4]} 12... Ng8
{[%clk 0:01:53.2]} 13. Nf3 {[%clk 0:02:05]} 13... Nd7 {[%clk 0:01:51.9]} 14. Be3
{[%clk 0:02:03]} 14... e5 {[%clk 0:01:48.2]} 15. f5 {[%clk 0:01:42.8]} 15...
gxf5 {[%clk 0:01:42.8]} 16. exf5 {[%clk 0:01:42.8]} 16... Ndf6 {[%clk
0:01:38.6]} 17. Ng5 {[%clk 0:01:40.2]} 17... h6 {[%clk 0:01:35.1]} 18. Nge4
{[%clk 0:01:38.3]} 18... Nh7 {[%clk 0:01:30.8]} 19. Qd2 {[%clk 0:01:33.4]} 19...
Bd7 {[%clk 0:01:28.8]} 20. Rf2 {[%clk 0:01:17.4]} 20... f6 {[%clk 0:01:28.5]}
21. Raf1 {[%clk 0:01:05.9]} 21... Ne7 {[%clk 0:01:28.4]} 22. Bxh6 {[%clk
0:01:03.9]} 22... Bxh6 {[%clk 0:01:28.2]} 23. Qxh6 {[%clk 0:01:03.3]} 23... Rf7
{[%clk 0:01:28.4]} 24. Bh5 {[%clk 0:01:00.1]} 24... Qf8 {[%clk 0:01:27.3]} 25.
Qe3 {[%clk 0:00:52.2]} 25... Rg7 {[%clk 0:01:27.1]} 26. Ne2 {[%clk 0:00:33]}
26... Ng5 {[%clk 0:01:24.8]} 27. Nxg5 {[%clk 0:00:31.5]} 27... Rxg5 {[%clk
0:01:25.7]} 28. Ng3 {[%clk 0:00:24]} 28... Qh6 {[%clk 0:01:24.1]} 29. Be2 {[%clk
0:00:19]} 29... Rag8 {[%clk 0:01:23.1]} 30. Ne4 {[%clk 0:00:18.6]} 30... Rxg2+
{[%clk 0:01:22.3]} 31. Rxg2 {[%clk 0:00:16.9]} 31... Qxe3+ {[%clk 0:01:22.8]}
32. Kh1 {[%clk 0:00:14.9]} 32... Rxg2 {[%clk 0:01:22.4]} 33. Kxg2 {[%clk
0:00:14.1]} 33... Qxe2+ {[%clk 0:01:22.7]} 34. Nf2 {[%clk 0:00:14.5]} 34... Nxf5
{[%clk 0:01:22.7]} 0-1

[Event "Late-Titled-Tuesday-Blitz-January-23-2024"]
[Site "Chess.com"]
[Date "2024.01.23"]
[Round "9"]
[White "only_strong_moves"]
[Black "reevecanada"]
[Result "0-1"]
[WhiteElo "2531"]
[BlackElo "2643"]
[TimeControl "180+1"]
[EndTime "15:40:53 PST"]
[Termination "reevecanada won by resignation"]

1. e4 {[%clk 0:03:00.9]} 1... c5 {[%clk 0:02:58.5]} 2. Nf3 {[%clk 0:03:00.8]}
2... d6 {[%clk 0:02:58.3]} 3. d4 {[%clk 0:03:01.2]} 3... cxd4 {[%clk 0:02:59.1]}
4. Nxd4 {[%clk 0:03:01.7]} 4... Nf6 {[%clk 0:02:59.3]} 5. Nc3 {[%clk 0:03:02.4]}
5... a6 {[%clk 0:02:59.5]} 6. Bg5 {[%clk 0:03:00.7]} 6... Nbd7 {[%clk
0:02:57.8]} 7. Qd2 {[%clk 0:02:55.5]} 7... b5 {[%clk 0:02:55.5]} 8. a3 {[%clk
0:02:25.4]} 8... Bb7 {[%clk 0:02:52.4]} 9. f3 {[%clk 0:02:19.7]} 9... Qc7 {[%clk
0:02:51.3]} 10. Be2 {[%clk 0:02:18.4]} 10... h6 {[%clk 0:02:50.8]} 11. Be3
{[%clk 0:02:17.1]} 11... e6 {[%clk 0:02:43.5]} 12. O-O {[%clk 0:02:14.6]} 12...
Be7 {[%clk 0:02:43.4]} 13. Kh1 {[%clk 0:02:10.3]} 13... O-O {[%clk 0:02:41.3]}
14. Rae1 {[%clk 0:02:05.8]} 14... d5 {[%clk 0:02:27.4]} 15. Bd3 {[%clk
0:01:52.7]} 15... dxe4 {[%clk 0:02:12.9]} 16. Nxe4 {[%clk 0:01:44.6]} 16... Bxe4
{[%clk 0:02:12.2]} 17. fxe4 {[%clk 0:01:40.8]} 17... Ng4 {[%clk 0:02:11.5]} 18.
Bf4 {[%clk 0:01:38.9]} 18... Bd6 {[%clk 0:02:08.3]} 19. Bxd6 {[%clk 0:01:34]}
19... Qxd6 {[%clk 0:02:06.7]} 20. e5 {[%clk 0:01:27.1]} 20... Ndxe5 {[%clk
0:02:06.3]} 21. Nxb5 {[%clk 0:00:42.6]} 21... Qb8 {[%clk 0:01:37.3]} 22. Nd6
{[%clk 0:00:42]} 22... Rd8 {[%clk 0:01:25]} 23. Rd1 {[%clk 0:00:16.1]} 23...
Rxd6 {[%clk 0:01:21.9]} 24. Bh7+ {[%clk 0:00:15.3]} 24... Kxh7 {[%clk
0:01:22.4]} 25. Qxd6 {[%clk 0:00:15.4]} 25... Ne3 {[%clk 0:01:22.7]} 26. Rfe1
{[%clk 0:00:06.7]} 26... Nxd1 {[%clk 0:01:20.8]} 27. Qxd1 {[%clk 0:00:07.5]}
27... Qxb2 {[%clk 0:01:19]} 28. Qe2 {[%clk 0:00:07]} 28... Rd8 {[%clk
0:01:15.9]} 29. Qe4+ {[%clk 0:00:06.1]} 29... f5 {[%clk 0:01:14.6]} 30. h3
{[%clk 0:00:06.9]} 30... fxe4 {[%clk 0:01:14]} 0-1